bitfinex/quotes_SOLUSD_20241101
["timestamp","ask_amount","ask_price","bid_price","bid_amount"]
[1730476354209,0.7627639,164.96,164.95,45.41896144]
[1730476354517,45.41896144,165.04,164.98,45.41896144]
[1730476354696,45.41896144,165.08,165.02,45.41896144]
[1730476355013,6.3909,165.15,164.97,0.12549]
[1730476355014,45.41896144,165.09,164.97,0.12549]
[1730476355192,45.41896144,165.1,165.05,45.41896144]
[1730476355391,45.41896144,165.1,165.04,45.41896144]
[1730476355705,45.41896144,165.12,165.07,45.41896144]
[1730476355909,45.41896144,165.17,165.11,45.41896144]
[1730476356210,46.18172534,165.16,165.1,45.41896144]
[1730476356409,45.41896144,165.15,165.05,51.4994]
[1730476356597,45.41896144,165.15,165.1,45.41896144]
[1730476356793,0.7627639,165.16,165.11,45.41896144]
[1730476357113,0.7627639,165.16,165.13,45.41896144]
[1730476357593,0.7627639,165.16,165.14,45.41896144]
[1730476357917,0.7627639,165.16,165.14,20.0]
[1730476358210,0.7627639,165.16,165.14,65.41896144]
[1730476358408,0.7627639,165.16,165.15,6.0551]
[1730476358911,46.18172534,165.16,165.09,15.1424]
[1730476359116,45.41896144,165.1,165.03,45.41896144]
[1730476359324,21.9544639,165.16,164.97,21.2159]
[1730476359613,21.9544639,165.16,164.97,51.5244]
[1730476359614,39.420964,165.15,164.97,51.5244]
[1730476359784,6.4711,165.14,164.97,15.1542]
[1730476359982,6.4711,165.14,164.96,6.0617]
[1730476359983,20.25098,165.12,164.94,6.0626]
[1730476360186,0.25098,165.09,164.94,6.0626]
[1730476360409,23.776884,165.05,164.9,15.1605]
[1730476360612,15.3931,165.01,164.87,30.3255]
[1730476360907,45.41896144,164.96,164.91,45.41896144]
[1730476361113,45.41896144,164.96,164.9,45.41896144]
[1730476361315,45.41896144,164.92,164.86,45.41896144]
[1730476361614,0.52257921,164.94,164.79,15.1708]
[1730476361783,0.52257921,164.94,164.68,6.3329]
[1730476361784,20.25098,164.88,164.74,15.1748]
[1730476361983,23.776884,164.87,164.75,6.0695]
[1730476362208,16.0404,164.89,164.75,21.244]
[1730476362396,6.0653,164.87,164.65,21.2571]
[1730476362709,45.41896144,164.81,164.75,45.41896144]
[1730476362888,16.0404,164.89,164.8,45.41896144]
[1730476362889,61.45936144,164.89,164.8,45.41896144]
[1730476363093,51.91916144,164.93,164.8,45.41896144]
[1730476363291,6.5002,164.93,164.8,45.41896144]
[1730476363711,6.5002,164.93,164.81,0.12549]
[1730476363890,6.5002,164.93,164.8,45.41896144]
[1730476364098,6.5002,164.93,164.74,24.272272]
[1730476364299,45.41896144,164.91,164.85,45.41896144]
[1730476364603,45.41896144,164.95,164.89,45.41896144]
[1730476364824,16.393,164.97,164.83,0.12549]
[1730476364825,61.81196144,164.97,164.91,45.41896144]
[1730476365121,16.393,164.97,164.82,51.5713]
[1730476365300,22.4549,164.97,164.83,20.0]
[1730476365617,22.4549,164.97,164.82,51.5713]
[1730476366006,22.4549,164.97,164.82,21.2352]
[1730476366213,45.41896144,164.85,164.82,21.2352]
[1730476366416,45.41896144,164.86,164.8,45.41896144]
[1730476366821,45.41896144,164.88,164.82,45.41896144]
[1730476367016,45.41896144,164.83,164.73,21.2468]
[1730476367204,24.027864,164.83,164.73,15.1763]
[1730476367515,6.79308,164.94,164.73,21.2468]
[1730476367703,23.776884,164.93,164.73,21.2468]
[1730476368100,0.25098,164.92,164.73,21.2468]
[1730476368520,45.41896144,164.87,164.81,45.41896144]
[1730476368732,45.41896144,164.88,164.82,45.41896144]
[1730476368930,45.41896144,164.87,164.81,45.41896144]
[1730476369227,45.41896144,164.89,164.83,45.41896144]
[1730476369530,6.5421,164.94,164.8,20.12549]
[1730476369737,6.5421,164.94,164.81,23.776884]
[1730476369908,16.393,164.97,164.82,20.25098]
[1730476370310,16.393,164.97,164.84,20.25098]
[1730476370635,45.41896144,164.95,164.9,21.2249]
[1730476371017,45.41896144,164.96,164.91,65.41896144]
[1730476371227,45.41896144,164.98,164.93,45.41896144]
[1730476371440,6.3017,165.01,164.9,21.2249]
[1730476371730,45.41896144,164.94,164.9,51.5463]
[1730476371901,6.3017,165.01,164.91,65.41896144]
[1730476372531,45.41896144,164.96,164.91,20.0]
[1730476372824,45.41896144,165.04,164.93,65.41896144]
[1730476372825,45.41896144,164.99,164.93,65.41896144]
[1730476373013,16.3095,165.05,164.97,45.41896144]
[1730476373014,45.41896144,165.03,164.97,45.41896144]
[1730476373217,45.41896144,165.03,164.93,0.12549]
[1730476373218,45.41896144,165.12,165.0,65.41896144]
[1730476373406,45.41896144,165.12,165.0,20.0]
[1730476373825,45.41896144,165.12,164.94,23.902374]
[1730476374228,45.41896144,165.12,164.98,24.027864]
[1730476374414,45.41896144,165.1,165.05,20.0]
[1730476374818,45.41896144,165.12,165.07,20.0]
[1730476375008,45.41896144,165.13,165.07,65.41896144]
[1730476375213,0.7627639,165.16,165.09,20.0]
[1730476375214,45.41896144,165.14,165.09,20.0]
[1730476375410,0.7627639,165.16,165.09,20.0]
[1730476375721,0.7627639,165.16,165.11,20.0]
[1730476375903,45.41896144,165.15,165.11,20.0]
[1730476376229,0.7627639,165.16,165.14,65.41896144]
[1730476376416,0.7627639,165.16,165.15,45.41896144]
[1730476376622,0.7627639,165.16,165.15,71.47406144]
[1730476377341,6.39e-05,165.16,165.15,95.62741544]
[1730476377716,6.39e-05,165.16,165.15,95.50192544]
[1730476377920,6.39e-05,165.16,165.15,95.37643544]
[1730476378229,6.39e-05,165.16,165.15,95.50192544]
[1730476378529,16.6488,165.3,165.16,44.027864]
[1730476378741,7.0090639,165.37,165.18,44.153354]
[1730476379307,45.41896144,165.3,165.25,20.0]
[1730476379524,45.41896144,165.32,165.26,45.41896144]
[1730476380131,0.7627639,165.37,165.2,45.41896144]
[1730476380432,0.7627639,165.37,165.22,0.12549]
[1730476380433,0.3787903,165.37,165.22,0.12549]
[1730476380821,0.3787903,165.37,165.24,20.0]
[1730476381210,45.79775174,165.37,165.31,45.41896144]
[1730476381410,0.3787903,165.37,165.33,45.41896144]
[1730476381625,0.3787903,165.37,165.34,20.0]
[1730476381806,0.3787903,165.37,165.36,45.41896144]
[1730476382810,0.3787903,165.37,165.36,26.0474]
[1730476383024,0.3787903,165.37,165.36,71.46636144]
[1730476383217,0.3787903,165.37,165.36,96.70281866]
[1730476383421,0.7837092,165.48,165.37,20.0]
[1730476384115,45.41896144,165.42,165.36,66.58486144]
[1730476384315,45.41896144,165.45,165.39,65.41896144]
[1730476384613,0.7837092,165.48,165.36,66.58486144]
[1730476384927,0.7837092,165.48,165.33,30.2422]
[1730476384928,0.7837092,165.48,165.34,20.0]
[1730476385111,0.7837092,165.48,165.35,0.12549]
[1730476385315,0.7837092,165.48,165.36,1.20862324]
[1730476385515,0.7837092,165.48,165.34,20.0]
[1730476385735,45.41896144,165.47,165.41,45.41896144]
[1730476386038,45.41896144,165.42,165.34,1.38243273]
[1730476386339,45.41896144,165.38,165.34,1.38243273]
[1730476386535,22.9201,165.43,165.34,1.38243273]
[1730476386711,41.1582,165.42,165.34,1.38243273]
[1730476386914,0.25098,165.41,165.34,1.38243273]
[1730476387132,0.12549,165.41,165.34,1.38243273]
[1730476387323,0.25098,165.41,165.34,1.38243273]
[1730476387517,0.12549,165.42,165.34,1.38243273]
[1730476387724,45.41896144,165.39,165.34,1.38243273]
[1730476387922,45.41896144,165.38,165.34,1.38243273]
[1730476388119,45.41896144,165.35,165.34,1.38243273]
[1730476388321,45.41896144,165.35,165.15,75.679208]
[1730476388638,44.0772,165.43,165.15,51.4683]
[1730476388639,0.12549,165.41,165.15,51.4683]
[1730476388826,0.25098,165.38,165.16,1.38393938]
[1730476389724,45.41896144,165.27,165.21,45.41896144]
[1730476389929,45.41896144,165.25,165.19,45.41896144]
[1730476390233,45.41896144,165.24,165.18,45.41896144]
[1730476390529,45.41896144,165.36,165.15,15.1377]
[1730476390735,45.41896144,165.36,165.16,0.12549]
[1730476390926,51.46656144,165.36,165.17,51.462]
[1730476391112,6.047,165.38,165.18,0.12549]
[1730476391314,21.1582,165.42,165.18,0.12549]
[1730476391531,45.41896144,165.3,165.24,45.41896144]
[1730476391944,45.41896144,165.31,165.25,45.41896144]
[1730476392232,45.41896144,165.36,165.25,20.0]
[1730476392643,45.41896144,165.36,165.21,20.0]
[1730476392842,45.41896144,165.36,165.17,51.462]
[1730476392843,45.41896144,165.36,165.17,45.4077]
[1730476393136,45.41896144,165.36,165.14,6.0554]
[1730476393137,20.0,165.33,165.14,6.0554]
[1730476393334,0.25098,165.32,165.1,30.2835]
[1730476393538,45.41896144,165.17,165.11,66.61686144]
[1730476393742,45.41896144,165.23,165.16,45.41896144]
[1730476393914,0.12549,165.32,165.12,45.41896144]
[1730476394116,20.25098,165.33,165.12,45.41896144]
[1730476394341,20.0,165.33,165.13,0.12549]
[1730476394514,20.0,165.33,165.12,45.41896144]
[1730476394721,20.0,165.33,165.07,15.1444]
[1730476394930,41.1723,165.31,164.99,36.3657]
[1730476395131,45.41896144,165.14,165.08,45.41896144]
[1730476395333,45.41896144,165.2,165.04,45.41896144]
[1730476395334,45.41896144,165.28,165.04,45.41896144]
[1730476395641,0.25098,165.26,164.99,51.5181]
[1730476395845,0.25098,165.23,164.99,51.5181]
[1730476396141,0.25098,165.2,164.99,51.5181]
[1730476396315,43.776884,165.21,164.99,51.5181]
[1730476396520,0.25098,165.2,164.99,21.2133]
[1730476396724,45.41896144,165.05,164.99,66.63226144]
[1730476397245,45.41896144,165.06,165.0,45.41896144]
[1730476397418,45.41896144,165.1,165.04,45.41896144]
[1730476397625,23.776884,165.18,165.05,45.41896144]
[1730476397825,0.25098,165.17,164.99,51.5181]
[1730476398125,45.41896144,165.09,165.03,45.41896144]
[1730476398444,45.41896144,165.1,165.04,45.41896144]
[1730476398643,0.12549,165.17,165.04,45.41896144]
[1730476398644,45.41896144,165.11,165.04,45.41896144]
[1730476398941,45.41896144,165.06,165.0,45.41896144]
[1730476399127,45.41896144,165.04,164.99,15.1524]
[1730476399326,45.41896144,165.12,165.01,45.41896144]
[1730476399531,0.12549,165.11,165.01,45.41896144]
[1730476399835,0.12549,165.17,165.03,45.41896144]
[1730476400039,45.41896144,165.1,165.04,45.41896144]
[1730476400344,45.41896144,165.05,164.99,60.57136144]
[1730476400538,0.25098,165.1,164.99,15.1524]
[1730476400736,38.945684,165.11,164.99,15.1524]
[1730476400945,45.41896144,165.07,165.01,45.41896144]
[1730476401129,15.1688,165.11,165.03,45.41896144]
[1730476401130,45.41896144,165.09,165.03,45.41896144]
[1730476401629,15.1688,165.11,164.97,6.27141995]
[1730476401630,45.41896144,165.11,165.05,45.41896144]
[1730476401828,45.41896144,165.09,165.03,45.41896144]
[1730476402038,20.0,165.16,164.98,15.1533]
[1730476402929,30.082964,165.15,164.98,15.1533]
[1730476403148,23.776884,165.13,164.98,15.1533]
[1730476403440,45.41896144,165.12,165.06,45.41896144]
[1730476403647,45.41896144,165.14,165.08,45.41896144]
[1730476403827,45.41896144,165.1,165.04,45.41896144]
[1730476404152,21.6435,165.18,164.98,15.1533]
[1730476404441,36.7785,165.18,164.98,15.1533]
[1730476404938,20.0,165.17,164.92,21.2223]
[1730476405139,6.4064,165.15,164.92,21.2223]
[1730476405328,6.4064,165.15,164.96,45.41896144]
[1730476405329,45.41896144,165.01,164.96,45.41896144]
[1730476405533,45.41896144,165.03,164.97,45.41896144]
[1730476405745,45.41896144,165.02,164.96,45.41896144]
[1730476406043,45.41896144,165.05,164.99,45.41896144]
[1730476406221,45.41896144,165.07,165.01,45.41896144]
[1730476406422,45.41896144,165.09,165.03,45.41896144]
[1730476406651,45.41896144,165.08,165.02,45.41896144]
[1730476406822,45.41896144,165.12,164.93,20.0]
[1730476407022,6.0554,165.14,165.03,45.41896144]
[1730476407237,45.41896144,165.12,165.05,45.41896144]
[1730476407443,6.4064,165.15,165.07,45.41896144]
[1730476407641,6.4064,165.15,164.94,0.25098]
[1730476407840,12.4616,165.15,164.94,0.25098]
[1730476408023,6.4064,165.15,164.95,20.12549]
[1730476408224,6.4064,165.15,164.96,59.78972555]
[1730476408444,45.41896144,165.08,165.02,45.41896144]
[1730476408630,45.41896144,165.07,165.01,45.41896144]
[1730476408825,45.41896144,165.08,165.02,45.41896144]
[1730476409054,45.41896144,165.09,165.02,45.41896144]
[1730476409348,45.41896144,165.1,165.04,66.62586144]
[1730476409729,45.41896144,165.09,165.04,21.2069]
[1730476410548,45.41896144,165.12,165.06,45.41896144]
[1730476410859,45.41896144,165.09,165.04,51.5025]
[1730476411254,6.4064,165.15,165.04,51.5025]
[1730476411551,6.4064,165.15,165.04,30.2956]
[1730476411726,45.41896144,165.11,165.05,45.41896144]
[1730476411922,45.41896144,165.12,165.06,45.41896144]
[1730476412543,45.41896144,165.14,165.08,45.41896144]
[1730476412750,45.41896144,165.13,165.07,45.41896144]
[1730476413761,45.41896144,165.13,165.08,21.2017]
[1730476414256,21.6435,165.18,165.08,21.2017]
[1730476414257,45.41896144,165.16,165.1,45.41896144]
[1730476414427,45.41896144,165.17,165.11,45.41896144]
[1730476414826,45.41896144,165.12,164.98,6.6475]
[1730476415035,45.41896144,165.06,164.99,21.2133]
[1730476415332,36.7785,165.18,164.99,81.8229]
[1730476415553,0.25098,165.16,164.99,81.8229]
[1730476415728,20.0,165.15,164.99,75.762]
[1730476415930,20.0,165.17,165.0,0.12549]
[1730476416330,45.41896144,165.14,165.08,45.41896144]
[1730476416551,21.6436,165.18,165.1,45.41896144]
[1730476416552,45.41896144,165.16,165.1,45.41896144]
[1730476416730,45.41896144,165.13,165.07,45.41896144]
[1730476417753,21.6435,165.18,165.05,45.41896144]
[1730476417954,45.41896144,165.12,165.02,51.5087]
[1730476418146,45.41896144,165.12,165.06,45.41896144]
[1730476418339,45.41896144,165.13,165.07,45.41896144]
[1730476418538,45.41896144,165.15,165.09,45.41896144]
[1730476418737,45.41896144,165.15,165.03,20.0]
[1730476418738,6.532,165.21,165.04,0.12549]
[1730476418936,6.532,165.21,165.05,20.0]
[1730476419146,45.41896144,165.2,165.14,45.41896144]
[1730476419834,45.41896144,165.22,165.16,66.61046144]
[1730476420151,45.41896144,165.23,165.17,45.41896144]
[1730476420348,45.41896144,165.22,165.17,45.41896144]
[1730476420656,45.41896144,165.22,165.16,66.61046144]
[1730476421239,45.41896144,165.22,165.16,96.88406144]
[1730476421459,16.0998,165.25,165.16,96.88406144]
[1730476421460,45.41896144,165.18,165.16,21.1915]
[1730476421636,45.41896144,165.17,165.12,6.0562]
[1730476422061,45.41896144,165.16,165.12,6.0562]
[1730476422367,0.72416941,165.24,165.12,21.1967]
[1730476422532,45.41896144,165.18,165.12,96.89666144]
[1730476422734,45.41896144,165.19,165.13,45.41896144]
[1730476422955,45.41896144,165.2,165.14,45.41896144]
[1730476423162,45.41896144,165.17,165.15,15.1377]
[1730476423342,45.41896144,165.18,165.15,15.1377]
[1730476423749,45.41896144,165.16,165.15,15.1377]
[1730476423938,45.41896144,165.17,165.15,15.1377]
[1730476424156,15.2369,165.34,165.16,0.12549]
[1730476424355,15.2369,165.34,165.16,6.21679]
[1730476424568,6.0461,165.4,165.16,6.21679]
[1730476425063,6.0461,165.4,165.18,0.12549]
[1730476425265,45.41896144,165.33,165.27,45.41896144]
[1730476425560,45.41896144,165.32,165.26,45.41896144]
[1730476425949,45.41896144,165.3,165.24,45.41896144]
[1730476426159,45.41896144,165.29,165.23,45.41896144]
[1730476426352,45.41896144,165.3,165.24,45.41896144]
[1730476426549,45.41896144,165.31,165.25,45.41896144]
[1730476426748,45.41896144,165.32,165.26,45.41896144]
[1730476427050,21.5959,165.41,165.23,24.027864]
[1730476427051,27.6414,165.41,165.23,24.027864]
[1730476427256,45.41896144,165.36,165.3,45.41896144]
[1730476427451,45.41896144,165.35,165.29,45.41896144]
[1730476427762,45.41896144,165.37,165.31,45.41896144]
[1730476428261,45.41896144,165.44,165.34,45.41896144]
[1730476428262,45.41896144,165.4,165.34,45.41896144]
[1730476428564,51.46346144,165.44,165.25,20.0]
[1730476428863,51.46346144,165.44,165.26,23.902374]
[1730476429165,45.41896144,165.4,165.34,45.41896144]
[1730476429377,45.41896144,165.4,165.3,30.2466]
[1730476429656,45.41896144,165.38,165.32,45.41896144]
[1730476429848,45.41896144,165.39,165.33,45.41896144]
[1730476430258,45.41896144,165.38,165.32,45.41896144]
[1730476430438,45.41896144,165.37,165.33,15.1204]
[1730476430642,45.41896144,165.37,165.31,51.46816144]
[1730476430845,6.0448,165.43,165.29,15.1243]
[1730476431269,0.12549,165.42,165.29,15.1243]
[1730476431466,6.0448,165.43,165.29,21.1742]
[1730476431651,6.0444,165.44,165.29,51.424]
[1730476431844,6.3754,165.46,165.37,45.41896144]
[1730476431845,45.41896144,165.43,165.37,45.41896144]
[1730476432044,45.41896144,165.42,165.36,45.41896144]
[1730476432249,45.41896144,165.42,165.37,21.1646]
[1730476432454,45.41896144,165.4,165.37,15.1176]
[1730476432767,45.41896144,165.41,165.37,21.1646]
[1730476433158,6.3754,165.46,165.37,21.1646]
[1730476433474,45.41896144,165.45,165.39,45.41896144]
[1730476433669,45.41896144,165.46,165.4,45.41896144]
[1730476434054,45.41896144,165.45,165.39,45.41896144]
[1730476434276,45.41896144,165.45,165.37,21.1646]
[1730476434277,45.41896144,165.46,165.4,45.41896144]
[1730476434453,45.41896144,165.46,165.41,6.0455]
[1730476434767,0.7837092,165.48,165.44,45.41896144]
[1730476434969,45.41896144,165.46,165.4,45.41896144]
[1730476435268,0.7837092,165.48,165.38,20.0]
[1730476435656,6.0433,165.47,165.37,21.1641]
[1730476435856,0.7837092,165.48,165.38,20.0]
[1730476436055,6.8267092,165.48,165.38,20.0]
[1730476436270,0.7837092,165.48,165.37,30.2352]
[1730476436469,0.7837092,165.48,165.38,20.0]
[1730476436774,0.7837092,165.48,165.47,45.41896144]
[1730476436980,0.7837092,165.48,165.44,45.41896144]
[1730476436981,0.7837092,165.48,165.46,45.41896144]
[1730476437280,0.7837092,165.48,165.43,45.41896144]
[1730476437453,46.20267064,165.48,165.42,45.41896144]
[1730476437662,46.20267064,165.48,165.29,6.4091]
[1730476437663,0.7837092,165.48,165.29,6.4091]
[1730476437969,6.8267092,165.48,165.32,30.2427]
[1730476438145,23.902374,165.47,165.29,6.4091]
[1730476438349,0.12549,165.47,165.29,6.4091]
[1730476438567,45.41896144,165.43,165.36,45.41896144]
[1730476438770,6.0437,165.46,165.24,17.44395195]
[1730476438771,45.41896144,165.38,165.32,45.41896144]
[1730476438973,45.41896144,165.41,165.35,45.41896144]
[1730476439173,45.41896144,165.4,165.34,45.41896144]
[1730476439355,45.41896144,165.39,165.33,45.41896144]
[1730476439555,45.41896144,165.4,165.35,45.41896144]
[1730476439756,45.41896144,165.4,165.24,15.9548]
[1730476439757,45.41896144,165.39,165.33,45.41896144]
[1730476440056,45.41896144,165.37,165.32,45.41896144]
[1730476440254,45.41896144,165.33,165.26,45.41896144]
[1730476440456,45.41896144,165.36,165.17,6.6421]
[1730476440457,0.12549,165.34,165.17,6.6421]
[1730476440766,24.027864,165.35,165.18,6.054]
[1730476440951,24.027864,165.35,165.22,45.41896144]
[1730476440952,45.41896144,165.28,165.22,45.41896144]
[1730476441150,45.41896144,165.3,165.24,45.41896144]
[1730476441363,45.41896144,165.32,165.26,45.41896144]
[1730476441570,45.41896144,165.3,165.25,45.41896144]
[1730476441768,45.41896144,165.31,165.25,45.41896144]
[1730476442070,45.41896144,165.3,165.26,6.051]
[1730476442272,6.17329,165.35,165.26,21.1786]
[1730476442475,45.41896144,165.36,165.3,45.41896144]
[1730476442647,15.1128,165.38,165.26,21.1786]
[1730476442648,45.41896144,165.34,165.28,45.41896144]
[1730476442970,21.1596,165.38,165.26,21.1786]
[1730476443183,16.1949,165.45,165.29,20.25098]
[1730476443351,16.1949,165.45,165.31,20.0]
[1730476443552,21.4082,165.52,165.35,20.0]
[1730476443752,21.4082,165.52,165.33,20.0]
[1730476443753,6.0419,165.51,165.34,0.25098]
[1730476443957,15.3665,165.52,165.35,20.0]
[1730476444153,15.3665,165.52,165.37,20.12549]
[1730476444369,45.41896144,165.51,165.4,89.44682544]
[1730476444578,45.41896144,165.47,165.4,45.41896144]
[1730476444777,45.41896144,165.48,165.4,65.41896144]
[1730476445084,45.41896144,165.51,165.4,89.44682544]
[1730476445254,15.6781,165.59,165.42,0.25098]
[1730476445456,6.0486,165.65,165.44,20.0]
[1730476445653,12.0854,165.65,165.47,0.25098]
[1730476445879,6.0486,165.65,165.49,24.027864]
[1730476446175,6.0486,165.65,165.51,44.923584]
[1730476446387,45.41896144,165.59,165.54,45.41896144]
[1730476446555,45.41896144,165.57,165.51,66.56566144]
[1730476446875,46.02794884,165.58,165.53,45.41896144]
[1730476447051,46.02794884,165.58,165.52,45.41896144]
[1730476447256,0.6089874,165.58,165.53,45.41896144]
[1730476447486,0.6089874,165.58,165.54,45.41896144]
[1730476448183,0.6089874,165.58,165.54,6.0408]
[1730476448475,46.02794884,165.58,165.54,6.0408]
[1730476448673,45.41896144,165.55,165.54,15.102]
[1730476449053,45.41896144,165.55,165.5,21.1475]
[1730476449263,45.41896144,165.54,165.5,21.1475]
[1730476449481,45.41896144,165.53,165.5,21.1475]
[1730476449668,45.41896144,165.54,165.5,21.1475]
[1730476450073,45.41896144,165.57,165.51,45.41896144]
[1730476450257,45.41896144,165.57,165.52,21.1454]
[1730476450464,45.41896144,165.55,165.52,21.1454]
[1730476450658,45.41896144,165.57,165.52,21.1454]
[1730476450858,0.6089874,165.58,165.54,45.41896144]
[1730476451059,0.6089874,165.58,165.52,21.1454]
[1730476451254,0.6089874,165.58,165.52,51.3532]
[1730476452067,0.6089874,165.58,165.56,45.41896144]
[1730476452255,0.6089874,165.58,165.57,45.41896144]
[1730476452457,0.6089874,165.58,165.56,15.0999]
[1730476453181,0.6089874,165.58,165.57,45.41896144]
[1730476453385,0.6089874,165.58,165.56,60.51886144]
[1730476453585,0.6089874,165.58,165.56,15.0999]
[1730476454160,0.6089874,165.58,165.53,81.66616144]
[1730476454161,46.02794884,165.58,165.53,30.206]
[1730476454490,45.41896144,165.54,165.51,6.0418]
[1730476454783,45.41896144,165.56,165.51,21.1466]
[1730476455173,45.41896144,165.55,165.51,21.1466]
[1730476455374,45.41896144,165.53,165.51,15.1048]
[1730476455578,45.41896144,165.52,165.47,15.1077]
[1730476456084,45.41896144,165.55,165.5,45.41896144]
[1730476456280,45.41896144,165.57,165.51,51.46086144]
[1730476456489,46.02794884,165.58,165.52,45.41896144]
[1730476456668,0.6089874,165.58,165.56,45.41896144]
[1730476457177,0.6089874,165.58,165.55,45.41896144]
[1730476457405,6.6483874,165.58,165.51,21.1467]
[1730476457572,45.41896144,165.54,165.45,30.2206]
[1730476457760,45.41896144,165.54,165.48,45.41896144]
[1730476458082,45.41896144,165.55,165.5,45.41896144]
[1730476458581,45.41896144,165.54,165.48,45.41896144]
[1730476459088,45.41896144,165.56,165.5,45.41896144]
[1730476459288,51.45886144,165.57,165.51,45.41896144]
[1730476459577,45.41896144,165.55,165.49,45.41896144]
[1730476459783,45.41896144,165.56,165.5,45.41896144]
[1730476460582,45.41896144,165.54,165.5,6.0422]
[1730476460784,45.41896144,165.53,165.47,60.52736144]
[1730476460959,51.45936144,165.55,165.49,45.41896144]
[1730476461164,45.41896144,165.56,165.51,45.41896144]
[1730476461385,45.41896144,165.55,165.49,45.41896144]
[1730476461585,45.41896144,165.55,165.5,45.41896144]
[1730476461763,45.41896144,165.56,165.5,45.41896144]
[1730476461964,52.06734884,165.58,165.52,45.41896144]
[1730476462164,0.6089874,165.58,165.56,45.41896144]
[1730476462369,0.6089874,165.58,165.55,45.41896144]
[1730476462770,0.6089874,165.58,165.56,6.0401]
[1730476463166,45.41896144,165.57,165.5,45.41896144]
[1730476463373,46.02794884,165.58,165.53,45.41896144]
[1730476463684,0.6089874,165.58,165.57,45.41896144]
[1730476464272,0.6089874,165.58,165.51,20.0]
[1730476464461,0.6089874,165.58,165.48,51.3656]
[1730476464666,0.6089874,165.58,165.49,20.0]
[1730476464988,0.6089874,165.58,165.55,45.41896144]
[1730476465288,0.6089874,165.58,165.5,21.1479]
[1730476465487,0.6089874,165.58,165.57,45.41896144]
[1730476466773,0.6089874,165.58,165.57,51.45866144]
[1730476466971,0.6089874,165.58,165.57,45.41896144]
[1730476467187,0.6089874,165.58,165.56,15.0998]
[1730476467381,0.6089874,165.58,165.56,60.51876144]
[1730476467581,0.6089874,165.58,165.53,60.52176144]
[1730476467788,0.6089874,165.58,165.56,45.41896144]
[1730476468084,0.6089874,165.58,165.53,15.1028]
[1730476468969,0.6089874,165.58,165.55,45.41896144]
[1730476469165,0.6089874,165.58,165.54,45.41896144]
[1730476469370,45.41896144,165.55,165.48,45.41896144]
[1730476469587,45.41896144,165.5,165.45,6.0437]
[1730476469768,23.902374,165.57,165.39,21.162]
[1730476469965,45.41896144,165.54,165.49,45.41896144]
[1730476470192,21.7468874,165.58,165.39,51.3935]
[1730476470193,0.6089874,165.58,165.4,0.12549]
[1730476470492,0.6089874,165.58,165.4,30.2288]
[1730476470795,0.6089874,165.58,165.41,0.12549]
[1730476471093,45.41896144,165.57,165.52,45.41896144]
[1730476471594,46.02794884,165.58,165.52,45.41896144]
[1730476471897,0.6089874,165.58,165.57,45.41896144]
[1730476472191,46.02794884,165.58,165.52,45.41896144]
[1730476472369,46.02794884,165.58,165.53,45.41896144]
[1730476472575,0.6089874,165.58,165.53,45.41896144]
[1730476472996,0.6089874,165.58,165.54,45.41896144]
[1730476473295,0.6089874,165.58,165.57,45.41896144]
[1730476474096,0.6089874,165.58,165.53,45.41896144]
[1730476474280,0.6089874,165.58,165.49,43.902374]
[1730476474608,0.6089874,165.58,165.54,20.0]
[1730476475101,0.6089874,165.58,165.57,43.902374]
[1730476475312,6.6573,165.71,165.57,43.902374]
[1730476475313,0.6089874,165.74,165.59,23.902374]
[1730476475496,45.41896144,165.73,165.6,20.0]
[1730476475799,0.6089874,165.74,165.6,20.0]
[1730476475800,45.41896144,165.7,165.64,45.41896144]
[1730476476205,45.41896144,165.65,165.59,45.41896144]
[1730476476410,45.41896144,165.66,165.6,45.41896144]
[1730476476582,45.41896144,165.64,165.58,45.41896144]
[1730476476774,45.41896144,165.66,165.6,45.41896144]
[1730476476982,24.027864,165.72,165.6,21.1352]
[1730476477307,15.6927874,165.74,165.66,45.41896144]
[1730476477308,6.6424874,165.74,165.66,45.41896144]
[1730476477602,0.6089874,165.74,165.68,45.41896144]
[1730476477786,45.41896144,165.73,165.68,45.41896144]
[1730476478101,0.6089874,165.74,165.65,45.41896144]
[1730476478403,0.6089874,165.74,165.61,20.0]
[1730476478976,0.6089874,165.74,165.64,21.13]
[1730476479179,0.6089874,165.74,165.7,45.41896144]
[1730476479399,0.6089874,165.74,165.69,45.41896144]
[1730476479706,0.6089874,165.74,165.7,45.41896144]
[1730476479886,0.6089874,165.74,165.65,20.0]
[1730476479887,0.6089874,165.74,165.69,45.41896144]